Workbook

Sheet Summary
A1: Project Budget Worksheet - Iowa State University of Science and Technology | S1: Eff. 2/9//2017
H2: Enter other IDC rate here if using rate other than standard ISU negotiated research rate | S2: Updated 2/16/17
A3: Program Sponsor | D3: .
A4: Title | D4: . | T4: GS ________
A5: PI | D5: .
A6: Period of Performance | D6: . | T6: TOTAL
A7: Deadline | D7: . | H7: If using rate other than negotiated research, enter number in cell H3, and then select "other rate" for each year (see orange FY tabs below) | T7: =T107 -> 0
H9: Year 1 | J9: Year 2 | L9: Year 3 | N9: Year 4 | P9: Year 5 | R9: Total Federal Funds | S9: Total Cost-Shared Matching Funds | T9: Total Project Funds
H10: FY17 | I10: Select FY | J10: FY18 | K10: Select FY | L10: FY19 | M10: Select FY | N10: =IF(L10=A137,A137,IF(L10=A138,A139,IF(L10=A139,A140,IF(L10=A140,A141,IF(L10=A141,A142,IF(L10=A142,A143,IF(L10=A143,A144,IF(L10=A144,A145,IF(L10=A145,A146,IF(L10=A146,A147)))))))))) -> FY20 | O10: Select FY | P10: =IF(N10=A137,A137,IF(N10=A138,A139,IF(N10=A139,A140,IF(N10=A140,A141,IF(N10=A141,A142,IF(N10=A142,A143,IF(N10=A143,A144,IF(N10=A144,A145,IF(N10=A145,A146,IF(N10=A146,A147)))))))))) -> FY21 | Q10: Select FY
H11: Federal Funds Requested | I11: Cost-Shared Matching Funds | J11: Federal Funds Requested | K11: Cost-Shared Matching Funds | L11: Federal Funds Requested | M11: Cost-Shared Matching Funds | N11: Federal Funds Requested | O11: Cost-Shared Matching Funds | P11: Federal Funds Requested | Q11: Cost-Shared Matching Funds
D12: Salary | E12: Calendar | F12: Academic | G12: Summer
A13: A | C13: Key Personnel | D13: Monthly | E13: Months | F13: Months | G13: Months | H13: =SUM(H14:H22) -> 0 | I13: 0 | J13: 0 | K13: 0 | L13: 0 | M13: 0 | N13: 0 | O13: 0 | P13: 0 | Q13: 0 | R13: =SUM(H13+J13+L13+N13+P13) -> 0 | S13: =SUM(I13+K13+M13+O13+Q13) -> 0 | T13: =SUM(R13+S13) -> 0
B14: 1 | D14: 0 | E14: 0 | F14: 0 | G14: 0 | H14: =D14*(E14+F14+G14) -> 0 | J14: =ROUND(H14*1.03,0) -> 0 | L14: =ROUND(J14*1.03,0) -> 0 | N14: =ROUND(L14*1.03,0) -> 0 | P14: =ROUND(N14*1.03,0) -> 0 | R14: =SUM(H14+J14+L14+N14+P14) -> 0 | S14: =SUM(I14+K14+M14+O14+Q14) -> 0 | T14: =SUM(R14+S14) -> 0
B15: 2 | D15: 0 | E15: 0 | F15: 0 | G15: 0 | H15: 0 | J15: =ROUND(H15*1.03,0) -> 0 | L15: =ROUND(J15*1.03,0) -> 0 | N15: =ROUND(L15*1.03,0) -> 0 | P15: =ROUND(N15*1.03,0) -> 0 | R15: =SUM(H15+J15+L15+N15+P15) -> 0 | S15: 0 | T15: =SUM(R15+S15) -> 0
B16: 3 | D16: 0 | E16: 0 | F16: 0 | G16: 0 | H16: 0 | J16: 0 | L16: 0 | N16: 0 | P16: 0 | R16: 0 | S16: 0 | T16: 0
B17: 4 | D17: 0 | E17: 0 | F17: 0 | G17: 0 | H17: 0 | J17: 0 | L17: 0 | N17: 0 | P17: 0 | R17: 0 | S17: 0 | T17: 0
B18: 5 | D18: 0 | E18: 0 | F18: 0 | G18: 0 | H18: 0 | J18: 0 | L18: 0 | N18: 0 | P18: 0 | R18: 0 | S18: 0 | T18: 0
B19: 6 | D19: 0 | E19: 0 | F19: 0 | G19: 0 | H19: 0 | J19: 0 | L19: 0 | N19: 0 | P19: 0 | R19: 0 | S19: 0 | T19: 0
B20: 7 | D20: 0 | E20: 0 | F20: 0 | G20: 0 | H20: 0 | J20: 0 | L20: 0 | N20: 0 | P20: 0 | R20: 0 | S20: 0 | T20: 0
B21: 8 | D21: 0 | E21: 0 | F21: 0 | G21: 0 | H21: 0 | J21: 0 | L21: 0 | N21: 0 | P21: 0 | R21: 0 | S21: 0 | T21: 0
B22: 9 | D22: 0 | E22: 0 | F22: 0 | G22: 0 | H22: 0 | J22: 0 | L22: 0 | N22: 0 | P22: 0 | R22: 0 | S22: 0 | T22: 0
E23: Calendar | G23: Number of
A24: B | C24: Other Personnel | D24: Monthly | E24: Months | G24: persons | H24: =SUM(H25:H36) -> 0 | I24: 0 | J24: 0 | K24: 0 | L24: 0 | M24: 0 | N24: 0 | O24: 0 | P24: 0 | Q24: 0 | R24: =SUM(H24+J24+L24+N24+P24) -> 0 | S24: =SUM(I24+K24+M24+O24+Q24) -> 0 | T24: =SUM(R24+S24) -> 0
B25: 1 | C25: Post Doc | D25: 0 | E25: 0 | G25: 0 | H25: =D25*(E25)*G25 -> 0 | J25: =ROUND(H25*1.03,0) -> 0 | L25: =ROUND(J25*1.03,0) -> 0 | N25: =ROUND(L25*1.03,0) -> 0 | P25: =ROUND(N25*1.03,0) -> 0 | R25: =SUM(H25+J25+L25+N25+P25) -> 0 | S25: 0 | T25: =SUM(R25+S25) -> 0
B26: 2 | C26: Post Doc | D26: 0 | E26: 0 | G26: 0 | H26: =D26*(E26)*G26 -> 0 | J26: =ROUND(H26*1.03,0) -> 0 | L26: =ROUND(J26*1.03,0) -> 0 | N26: =ROUND(L26*1.03,0) -> 0 | P26: =ROUND(N26*1.03,0) -> 0 | R26: 0 | S26: 0 | T26: 0
B27: 3 | C27: Research Asst-Halftime | D27: 0 | E27: 0 | G27: 0 | H27: =D27*(E27)*G27 -> 0 | J27: 0 | L27: 0 | N27: 0 | P27: 0 | R27: 0 | S27: 0 | T27: 0
B28: 4 | C28: Research Asst-Halftime | D28: 0 | E28: 0 | G28: 0 | H28: =D28*(E28)*G28 -> 0 | J28: 0 | L28: 0 | N28: 0 | P28: 0 | R28: 0 | S28: 0 | T28: 0
B29: 5 | C29: Hourly Undergraduate student | D29: 0 | E29: 0 | G29: 0 | H29: =D29*(E29)*G29 -> 0 | J29: 0 | L29: 0 | N29: 0 | P29: 0 | R29: 0 | S29: 0 | T29: 0
B30: 6 | C30: Hourly Undergraduate student | D30: 0 | E30: 0 | G30: 0 | H30: =D30*(E30)*G30 -> 0 | J30: 0 | L30: 0 | N30: 0 | P30: 0 | R30: 0 | S30: 0 | T30: 0
B31: 7 | C31: P&S | D31: 0 | E31: 0 | G31: 0 | H31: 0 | J31: 0 | L31: 0 | N31: 0 | P31: 0 | R31: 0 | S31: 0 | T31: 0
B32: 8 | C32: P&S | D32: 0 | E32: 0 | G32: 0 | H32: 0 | J32: 0 | L32: 0 | N32: 0 | P32: 0 | R32: 0 | S32: 0 | T32: 0
B33: 9 | C33: Secretarial/Clerical | D33: 0 | E33: 0 | G33: 0 | H33: 0 | J33: 0 | L33: 0 | N33: 0 | P33: 0 | R33: 0 | S33: 0 | T33: 0
B34: 10 | C34: Secretarial/Clerical | D34: 0 | E34: 0 | G34: 0 | H34: 0 | J34: 0 | L34: 0 | N34: 0 | P34: 0 | R34: 0 | S34: 0 | T34: 0
B35: 11 | C35: Non-Student Hourly | D35: 0 | E35: 0 | G35: 0 | H35: 0 | J35: 0 | L35: 0 | N35: 0 | P35: 0 | R35: 0 | S35: 0 | T35: 0
B36: 12 | C36: Non-Student Hourly | D36: 0 | E36: 0 | G36: 0 | H36: 0 | J36: 0 | L36: 0 | N36: 0 | P36: 0 | R36: 0 | S36: 0 | T36: 0
C38: Subtotal: Salaries and Wages | H38: =+H13+H24 -> 0 | I38: 0 | J38: 0 | K38: 0 | L38: 0 | M38: 0 | N38: 0 | O38: 0 | P38: 0 | Q38: 0 | R38: =SUM(H38+J38+L38+N38+P38) -> 0 | S38: =SUM(I38+K38+M38+O38+Q38) -> 0 | T38: =SUM(R38+S38) -> 0
A40: C | C40: Fringe Benefits | D40: Rate | H40: =SUM(H41:H61) -> 0 | I40: 0 | J40: 0 | K40: 0 | L40: 0 | M40: 0 | N40: 0 | O40: 0 | P40: 0 | Q40: 0 | R40: =SUM(H40+J40+L40+N40+P40) -> 0 | S40: =SUM(I40+K40+M40+O40+Q40) -> 0 | T40: =SUM(R40+S40) -> 0
C41: =+C14 -> 0 | D41: 0.275 | H41: =ROUND(D41*H14,0) -> 0 | I41: =ROUND(D41*I14,0) -> 0 | J41: =ROUND(D41*J14,0) -> 0 | K41: =ROUND(D41*K14,0) -> 0 | L41: =ROUND(D41*L14,0) -> 0 | M41: =ROUND(D41*M14,0) -> 0 | N41: =ROUND(D41*N14,0) -> 0 | O41: =ROUND(D41*O14,0) -> 0 | P41: =ROUND(D41*P14,0) -> 0 | Q41: =ROUND(D41*Q14,0) -> 0 | R41: =SUM(H41+J41+L41+N41+P41) -> 0 | S41: 0 | T41: =SUM(R41+S41) -> 0
C42: =+C15 -> 0 | D42: 0.275 | H42: =ROUND(D42*H15,0) -> 0 | I42: =ROUND(D42*I15,0) -> 0 | J42: =ROUND(D42*J15,0) -> 0 | K42: =ROUND(D42*K15,0) -> 0 | L42: =ROUND(D42*L15,0) -> 0 | M42: =ROUND(D42*M15,0) -> 0 | N42: =ROUND(D42*N15,0) -> 0 | O42: =ROUND(D42*O15,0) -> 0 | P42: =ROUND(D42*P15,0) -> 0 | Q42: =ROUND(D42*Q15,0) -> 0 | R42: 0 | S42: 0 | T42: 0
C43: =+C16 -> 0 | D43: 0.275 | H43: 0 | I43: 0 | J43: 0 | K43: 0 | L43: 0 | M43: 0 | N43: 0 | O43: 0 | P43: 0 | Q43: 0 | R43: 0 | S43: 0 | T43: 0
C44: =+C17 -> 0 | D44: 0.275 | H44: 0 | I44: 0 | J44: 0 | K44: 0 | L44: 0 | M44: 0 | N44: 0 | O44: 0 | P44: 0 | Q44: 0 | R44: 0 | S44: 0 | T44: 0
C45: =+C18 -> 0 | D45: 0.275 | H45: 0 | I45: 0 | J45: 0 | K45: 0 | L45: 0 | M45: 0 | N45: 0 | O45: 0 | P45: 0 | Q45: 0 | R45: 0 | S45: 0 | T45: 0
C46: =C19 -> 0 | D46: 0.275 | H46: 0 | I46: 0 | J46: 0 | K46: 0 | L46: 0 | M46: 0 | N46: 0 | O46: 0 | P46: 0 | Q46: 0 | R46: 0 | S46: 0 | T46: 0
C47: =C20 -> 0 | D47: 0.275 | H47: 0 | I47: 0 | J47: 0 | K47: 0 | L47: 0 | M47: 0 | N47: 0 | O47: 0 | P47: 0 | Q47: 0 | R47: 0 | S47: 0 | T47: 0
C48: =C21 -> 0 | D48: 0.275 | H48: 0 | I48: 0 | J48: 0 | K48: 0 | L48: 0 | M48: 0 | N48: 0 | O48: 0 | P48: 0 | Q48: 0 | R48: 0 | S48: 0 | T48: 0
C49: =C22 -> 0 | D49: 0.275 | H49: 0 | I49: 0 | J49: 0 | K49: 0 | L49: 0 | M49: 0 | N49: 0 | O49: 0 | P49: 0 | Q49: 0 | R49: 0 | S49: 0 | T49: 0
C50: =+C25 -> Post Doc | D50: 0.329 | H50: =ROUND(D50*H25,0) -> 0 | I50: =ROUND(D50*I25,0) -> 0 | J50: =ROUND(D50*J25,0) -> 0 | K50: =ROUND(D50*K25,0) -> 0 | L50: =ROUND(D50*L25,0) -> 0 | M50: =ROUND(D50*M25,0) -> 0 | N50: =ROUND(D50*N25,0) -> 0 | O50: =ROUND(D50*O25,0) -> 0 | P50: =ROUND(D50*P25,0) -> 0 | Q50: =ROUND(D50*Q25,0) -> 0 | R50: 0 | S50: 0 | T50: 0
C51: =+C26 -> Post Doc | D51: 0.329 | H51: 0 | I51: 0 | J51: 0 | K51: 0 | L51: 0 | M51: 0 | N51: 0 | O51: 0 | P51: 0 | Q51: 0 | R51: 0 | S51: 0 | T51: 0
C52: Research Asst-Halftime | D52: 0.098 | H52: 0 | I52: 0 | J52: 0 | K52: 0 | L52: 0 | M52: 0 | N52: 0 | O52: 0 | P52: 0 | Q52: 0 | R52: 0 | S52: 0 | T52: 0
C53: Research Asst-Halftime | D53: 0.098 | H53: 0 | I53: 0 | J53: 0 | K53: 0 | L53: 0 | M53: 0 | N53: 0 | O53: 0 | P53: 0 | Q53: 0 | R53: 0 | S53: 0 | T53: 0
C54: Hourly Undergraduate student | D54: 0.006 | H54: 0 | I54: 0 | J54: 0 | K54: 0 | L54: 0 | M54: 0 | N54: 0 | O54: 0 | P54: 0 | Q54: 0 | R54: 0 | S54: 0 | T54: 0
C55: Hourly Undergraduate student | D55: 0.006 | H55: 0 | I55: 0 | J55: 0 | K55: 0 | L55: 0 | M55: 0 | N55: 0 | O55: 0 | P55: 0 | Q55: 0 | R55: 0 | S55: 0 | T55: 0
C56: P&S | D56: 0.345 | H56: 0 | I56: 0 | J56: 0 | K56: 0 | L56: 0 | M56: 0 | N56: 0 | O56: 0 | P56: 0 | Q56: 0 | R56: 0 | S56: 0 | T56: 0
C57: P&S | D57: 0.345 | H57: 0 | I57: 0 | J57: 0 | K57: 0 | L57: 0 | M57: 0 | N57: 0 | O57: 0 | P57: 0 | Q57: 0 | R57: 0 | S57: 0 | T57: 0
C58: Secretarial/Clerical | D58: 0.458 | H58: 0 | I58: 0 | J58: 0 | K58: 0 | L58: 0 | M58: 0 | N58: 0 | O58: 0 | P58: 0 | Q58: 0 | R58: 0 | S58: 0 | T58: 0
C59: Secretarial/Clerical | D59: 0.458 | H59: 0 | I59: 0 | J59: 0 | K59: 0 | L59: 0 | M59: 0 | N59: 0 | O59: 0 | P59: 0 | Q59: 0 | R59: 0 | S59: 0 | T59: 0
C60: Non-Student Hourly | D60: 0.171 | H60: 0 | I60: 0 | J60: 0 | K60: 0 | L60: 0 | M60: 0 | N60: 0 | O60: 0 | P60: 0 | Q60: 0 | R60: 0 | S60: 0 | T60: 0
C61: Non-Student Hourly | D61: 0.171 | H61: 0 | I61: 0 | J61: 0 | K61: 0 | L61: 0 | M61: 0 | N61: 0 | O61: 0 | P61: 0 | Q61: 0 | R61: 0 | S61: 0 | T61: 0
C63: Subtotal: Salaries, Wages, and Benefits | H63: =H38+H40 -> 0 | I63: 0 | J63: 0 | K63: 0 | L63: 0 | M63: 0 | N63: 0 | O63: 0 | P63: 0 | Q63: 0 | R63: =SUM(H63+J63+L63+N63+P63) -> 0 | S63: =SUM(I63+K63+M63+O63+Q63) -> 0 | T63: =SUM(R63+S63) -> 0
A65: D | C65: Equipment (List Item and $ amount for each item > $5k) | H65: =SUM(H66:H67) -> 0 | I65: 0 | J65: 0 | K65: 0 | L65: 0 | M65: 0 | N65: 0 | O65: 0 | P65: 0 | Q65: 0 | R65: =SUM(H65+J65+L65+N65+P65) -> 0 | S65: 0 | T65: =SUM(R65+S65) -> 0
C66: 1 | R66: 0 | S66: 0 | T66: =SUM(R66+S66) -> 0
C67: 2 | R67: 0 | S67: 0 | T67: =SUM(R67+S67) -> 0
A69: E | C69: Travel | H69: =SUM(H70:H71) -> 0 | I69: 0 | J69: 0 | K69: 0 | L69: 0 | M69: 0 | N69: 0 | O69: 0 | P69: 0 | Q69: 0 | R69: =SUM(H69+J69+L69+N69+P69) -> 0 | S69: 0 | T69: =SUM(R69+S69) -> 0
C70: 1. Domestic Travel | H70: 0 | J70: 0 | L70: 0 | N70: 0 | P70: 0 | R70: 0 | S70: 0 | T70: =SUM(R70+S70) -> 0
C71: 2. Foreign Travel | H71: 0 | J71: 0 | L71: 0 | N71: 0 | P71: 0 | R71: 0 | S71: 0 | T71: =SUM(R71+S71) -> 0
A73: F | C73: Participant Support Cost | H73: =SUM(H74:H77) -> 0 | I73: 0 | J73: 0 | K73: 0 | L73: 0 | M73: 0 | N73: 0 | O73: 0 | P73: 0 | Q73: 0 | R73: =SUM(H73+J73+L73+N73+P73) -> 0 | S73: =SUM(I73+K73+M73+O73+Q73) -> 0 | T73: =SUM(R73+S73) -> 0
C74: 1. Stipend | H74: 0 | J74: 0 | L74: 0 | N74: 0 | P74: 0 | R74: =SUM(H74+J74+L74+N74+P74) -> 0 | S74: 0 | T74: =SUM(R74+S74) -> 0
C75: 2. Travel | H75: 0 | J75: 0 | L75: 0 | N75: 0 | P75: 0 | R75: 0 | S75: 0 | T75: =SUM(R75+S75) -> 0
C76: 3. Subsistence | H76: 0 | J76: 0 | L76: 0 | N76: 0 | P76: 0 | R76: 0 | S76: 0 | T76: =SUM(R76+S76) -> 0
C77: 4. Other | H77: 0 | J77: 0 | L77: 0 | N77: 0 | P77: 0 | R77: 0 | S77: 0 | T77: =SUM(R77+S77) -> 0
A79: G | C79: Other Direct Costs | H79: =SUM(H80:H95) -> 0 | I79: 0 | J79: 0 | K79: 0 | L79: 0 | M79: 0 | N79: 0 | O79: 0 | P79: 0 | Q79: 0 | R79: =SUM(H79+J79+L79+N79+P79) -> 0 | S79: =SUM(I79+K79+M79+O79+Q79) -> 0 | T79: =SUM(R79+S79) -> 0
B80: 1 | C80: Materials and Supplies | H80: 0 | J80: 0 | L80: 0 | N80: 0 | P80: 0 | R80: =SUM(H80+J80+L80+N80+P80) -> 0 | S80: =SUM(I80+K80+M80+O80+Q80) -> 0 | T80: =SUM(R80+S80) -> 0
B81: 2 | C81: Publication cost | H81: 0 | J81: 0 | L81: 0 | N81: 0 | P81: 0 | R81: =SUM(H81+J81+L81+N81+P81) -> 0 | S81: 0 | T81: 0
B82: 3 | C82: Consultant/Professional Services | H82: 0 | J82: 0 | L82: 0 | N82: 0 | P82: 0 | R82: =SUM(H82+J82+L82+N82+P82) -> 0 | S82: =SUM(I82+K82+M82+O82+Q82) -> 0 | T82: =SUM(R82+S82) -> 0
B83: 3 | C83: Computing support | H83: 0 | J83: 0 | L83: 0 | N83: 0 | P83: 0 | R83: 0 | S83: 0 | T83: 0
B84: 4 | C84: Equipment/Facility Rental or User Fee | H84: 0 | J84: 0 | L84: 0 | N84: 0 | P84: 0 | R84: 0 | S84: 0 | T84: 0
B85: 4 | C85: Alterations and Renovations (not included in MTDC) | H85: 0 | J85: 0 | L85: 0 | N85: 0 | P85: 0 | R85: =SUM(H85+J85+L85+N85+P85) -> 0 | S85: =SUM(I85+K85+M85+O85+Q85) -> 0 | T85: =SUM(R85+S85) -> 0
B86: 5 | C86: Subcontractor1 - Subject to IDC (first $25,000) | E86: See notes below | H86: 0 | J86: 0 | L86: 0 | N86: 0 | P86: 0 | R86: 0 | S86: 0 | T86: 0
C87: NOT subject to IDC (Amount over $25,000) | H87: 0 | J87: 0 | L87: 0 | N87: 0 | P87: 0 | R87: 0 | S87: 0 | T87: 0
B88: 6 | C88: Subcontractor2 - Subject to IDC (first $25,000) | E88: See notes below | H88: 0 | J88: 0 | L88: 0 | N88: 0 | P88: 0 | R88: 0 | S88: 0 | T88: 0
C89: NOT subject to IDC (Amount over $25,000) | H89: 0 | J89: 0 | L89: 0 | N89: 0 | P89: 0 | R89: 0 | S89: 0 | T89: 0
B90: 7 | C90: Tuition-(most majors) | E90: (Click on "Tuition" sheet) | H90: =Tuition!K6 -> 0 | J90: =Tuition!M6 -> 0 | L90: =Tuition!O6 -> 0 | N90: =Tuition!Q6 -> 0 | P90: =Tuition!S6 -> 0 | R90: 0 | S90: 0 | T90: 0
B91: 8 | C91: Tuition-Engineering & Architecture | E91: (Click on "Tuition" sheet) | H91: =Tuition!K26 -> 0 | J91: =Tuition!M26 -> 0 | L91: =Tuition!O26 -> 0 | N91: =Tuition!Q26 -> 0 | P91: =Tuition!S26 -> 0 | R91: 0 | S91: 0 | T91: 0
B92: 8 | C92: Tuition-Business & STB | E92: (Click on "Tuition" sheet) | H92: =Tuition!K46 -> 0 | J92: =Tuition!M46 -> 0 | L92: =Tuition!O46 -> 0 | N92: =Tuition!Q46 -> 0 | P92: =Tuition!S46 -> 0 | R92: =SUM(H92+J92+L92+N92+P92) -> 0 | S92: =SUM(I92+K92+M92+O92+Q92) -> 0 | T92: =SUM(R92+S92) -> 0
C93: Tuition-Specific Grad Depts | E93: (Click on "Tuition" sheet) | H93: =Tuition!K67 -> 0 | J93: =Tuition!M67 -> 0 | L93: =Tuition!O67 -> 0 | N93: =Tuition!Q67 -> 0 | P93: =Tuition!S67 -> 0 | R93: =H93+J93+L93+N93+P93 -> 0 | S93: =I93+K93+M93+O93+Q93 -> 0 | T93: =S93+R93 -> 0
B94: 9 | C94: Other | H94: 0 | J94: 0 | L94: 0 | N94: 0 | P94: 0 | R94: 0 | S94: 0 | T94: 0
B95: 10 | C95: Other | H95: 0 | J95: 0 | L95: 0 | N95: 0 | P95: 0 | R95: 0 | S95: 0 | T95: 0
C97: Subtotal: Total Direct Costs (TDC) | H97: =H63+H65+H69+H73+H79 -> 0 | I97: 0 | J97: 0 | K97: 0 | L97: 0 | M97: 0 | N97: 0 | O97: 0 | P97: 0 | Q97: 0 | R97: =SUM(H97+J97+L97+N97+P97) -> 0 | S97: =SUM(I97+K97+M97+O97+Q97) -> 0 | T97: =SUM(R97+S97) -> 0
C99: Subtotal: Modified Total Direct Costs | H99: =IF(H10=A137,H97,(H97-H65-H87-H89-H90-H91-H92-H93-H73-H85)) -> 0 | I99: =IF(H10=A137,I97,(I97-I65-I87-I89-I90-I91-I92-I93-I73-I85)) -> 0 | J99: =IF(J10=A137,J97,(J97-J65-J87-J89-J90-J91-J92-J93-J73-J85)) -> 0 | K99: =IF(J10=A137,K97,(K97-K65-K87-K89-K90-K91-K92-K93-K73-K85)) -> 0 | L99: =IF(L10=A137,L97,(L97-L65-L87-L89-L90-L91-L92-L93-L73-L85)) -> 0 | M99: =IF(L10=A137,M97,(M97-M65-M87-M89-M90-M91-M92-M93-M73-M85)) -> 0 | N99: =IF(N10=A137,N97,(N97-N65-N87-N89-N90-N91-N92-N93-N73-N85)) -> 0 | O99: =IF(N10=A137,O97,(O97-O65-O87-O89-O90-O91-O92-O93-O73-O85)) -> 0 | P99: =IF(P10=A137,P97,(P97-P65-P87-P89-P90-P91-P92-P93-P73-P85)) -> 0 | Q99: =IF(P10=A137,Q97,(Q97-Q65-Q87-Q89-Q90-Q91-Q92-Q93-Q73-Q85)) -> 0 | R99: =SUM(H99+J99+L99+N99+P99) -> 0 | S99: =SUM(I99+K99+M99+O99+Q99) -> 0 | T99: =SUM(R99+S99) -> 0
C100: [ MTDC = TDC - Tuition - Equipment - Participant Support Cost ]
A102: H | C102: Indirect Costs | H102: =SUM(H103:H103) -> 0 | I102: =SUM(I103:I103) -> 0 | J102: 0 | K102: 0 | L102: 0 | M102: 0 | N102: 0 | O102: 0 | P102: 0 | Q102: 0 | R102: =SUM(H102+J102+L102+N102+P102) -> 0 | S102: =SUM(I102+K102+M102+O102+Q102) -> 0 | T102: =SUM(R102+S102) -> 0
C103: IDC on MTDC | E103: [ IDC = MTDC * Indirect Rate ] | H103: =ROUND(IF(H10=A137,C137,IF(H10=A138,C138,IF(H10=A139,C139,IF(H10=A140,C140,IF(H10=A141,C141,IF(H10=A142,C142,IF(H10=A143,C143)))))))*(IF(H10=A137,H97,H99)),0) -> 0 | I103: =ROUND(IF(H10=A137,C137,IF(H10=A138,C138,IF(H10=A139,C139,IF(H10=A140,C140,IF(H10=A141,C141,IF(H10=A142,C142,IF(H10=A143,C143)))))))*(IF(H10=A137,I97,I99)),0) -> 0 | J103: =ROUND(IF(J10=A137,C137,IF(J10=A138,C138,IF(J10=A139,C139,IF(J10=A140,C140,IF(J10=A141,C141,IF(J10=A142,C142,IF(J10=A143,C143,IF(J10=A144,C144,IF(J10=A145,C145,IF(J10=A146,C146,IF(J10=A147,C147)))))))))))*(IF(J10=A137,J97,J99)),0) -> 0 | K103: =ROUND(IF(J10=A137,C137,IF(J10=A138,C138,IF(J10=A139,C139,IF(J10=A140,C140,IF(J10=A141,C141,IF(J10=A142,C142,IF(J10=A143,C143,IF(J10=A144,C144,IF(J10=A145,C145,IF(J10=A146,C146,IF(J10=A147,C147)))))))))))*(IF(J10=A137,K97,K99)),0) -> 0 | L103: =ROUND(IF(L10=A137,C137,IF(L10=A138,C138,IF(L10=A139,C139,IF(L10=A140,C140,IF(L10=A141,C141,IF(L10=A142,C142,IF(L10=A143,C143,IF(L10=A144,C144,IF(L10=A145,C145,IF(L10=A146,C146,IF(L10=A147,C147)))))))))))*(IF(L10=A137,L97,L99)),0) -> 0 | M103: =ROUND(IF(L10=A137,C137,IF(L10=A138,C138,IF(L10=A139,C139,IF(L10=A140,C140,IF(L10=A141,C141,IF(L10=A142,C142,IF(L10=A143,C143,IF(L10=A144,C144,IF(L10=A145,C145,IF(L10=A146,C146,IF(L10=A147,C147)))))))))))*(IF(L10=A137,M97,M99)),0) -> 0 | N103: =ROUND(IF(N10=A137,C137,IF(N10=A138,C138,IF(N10=A139,C139,IF(N10=A140,C140,IF(N10=A141,C141,IF(N10=A142,C142,IF(N10=A143,C143,IF(N10=A144,C144,IF(N10=A145,C145,IF(N10=A146,C146,IF(N10=A147,C147)))))))))))*(IF(N10=A137,N97,N99)),0) -> 0 | O103: =ROUND(IF(N10=A137,C137,IF(N10=A138,C138,IF(N10=A139,C139,IF(N10=A140,C140,IF(N10=A141,C141,IF(N10=A142,C142,IF(N10=A143,C143,IF(N10=A144,C144,IF(N10=A145,C145,IF(N10=A146,C146,IF(N10=A147,C147)))))))))))*(IF(N10=A137,O97,O99)),0) -> 0 | P103: =ROUND(IF(P10=A137,C137,IF(P10=A138,C138,IF(P10=A139,C139,IF(P10=A140,C140,IF(P10=A141,C141,IF(P10=A142,C142,IF(P10=A143,C143,IF(P10=A144,C144,IF(P10=A145,C145,IF(P10=A146,C146,IF(P10=A147,C147)))))))))))*(IF(P10=A137,P97,P99)),0) -> 0 | Q103: =ROUND(IF(P10=A137,C137,IF(P10=A138,C138,IF(P10=A139,C139,IF(P10=A140,C140,IF(P10=A141,C141,IF(P10=A142,C142,IF(P10=A143,C143,IF(P10=A144,C144,IF(P10=A145,C145,IF(P10=A146,C146,IF(P10=A147,C147)))))))))))*(IF(P10=A137,Q97,Q99)),0) -> 0 | R103: =SUM(H103+J103+L103+N103+P103) -> 0 | S103: =SUM(I103+K103+M103+O103+Q103) -> 0 | T103: =SUM(R103+S103) -> 0
C104: If less than full IDC rate, please modify MTDC line to equal TDC
A107: I | C107: Total Direct + Indirect Costs | H107: =H97+H102 -> 0 | I107: 0 | J107: 0 | K107: 0 | L107: 0 | M107: 0 | N107: 0 | O107: 0 | P107: 0 | Q107: 0 | R107: =SUM(H107+J107+L107+N107+P107) -> 0 | S107: =SUM(I107+K107+M107+O107+Q107) -> 0 | T107: =SUM(R107+S107) -> 0
C113: NOTES:
C115: This budget is completely adjustable. As such, you will need to double check your work and make adjustments in certain cells, such as:
C117: Subcontracts - Verify that only the first $25K of each subcontract is charged IDC. You might need to adjust the MTDC for each year of each subcontract.
C122: Benefits: | H122: Indirect Cost Categories:
C123: A&B | D123: 0.275
C124: C | D124: 0.098 | H124: 0.52 | I124: On-Campus Organized Research FY17, FY18
C125: D | D125: 0.329 | H125: 0.53 | I125: On-Campus Organized Research FY19-21
C126: P | D126: 0.345 | H126: 0.53 | I126: On Campus Instruction
C127: E | D127: 0.458 | H127: 0.33 | I127: On-Campus Other Sponsored Activities
C128: XH (Student hourly) | D128: 0.006 | H128: 0.26 | I128: Off-Campus All Programs
C129: XH (Non-Student hourly) | D129: 0.171
C131: Post Doc Salary Range:
C133: http://www.grad-college.iastate.edu/post_doc/policies.php
A136: FY | C136: RATE
A137: Other Rate | C137: =H3 -> 0
A138: FY17 | C138: 0.52
A139: FY18 | C139: 0.52
A140: FY19 | C140: 0.53
A141: FY20 | C141: 0.53
A142: FY21 | C142: 0.53
A143: FY22 | C143: 0.53
A144: FY23 | C144: 0.53
A145: FY24 | C145: 0.53
A146: FY25 | C146: 0.53
A147: FY26 | C147: 0.53

Sheet Tuition
C1: Tuition Costs | K1: Year 1 | M1: Year 2 | O1: Year 3 | Q1: Year 4 | S1: Year 5
K3: Funds Requested | M3: Funds Requested | O3: Funds Requested | Q3: Funds Requested | S3: Funds Requested
A6: 8 | C6: Graduate Student Tuition (most Majors) | G6: select 1/4-time/1/2-time > > | I6: 1/2-time | K6: =ROUND(IF(I6="1/2-time",K7,K8),0) -> 0 | M6: =ROUND(IF(I6="1/2-time",M7,M8),0) -> 0 | O6: =ROUND(IF(I6="1/2-time",O7,O8),0) -> 0 | Q6: =ROUND(IF(I6="1/2-time",Q7,Q8),0) -> 0 | S6: =ROUND(IF(I6="1/2-time",S7,S8),0) -> 0
A7: 8 | C7: Graduate Student Tuition | I7: Maximum | K7: =+C13*VLOOKUP(K13,$I$91:$Q$117,5,FALSE)+C15*VLOOKUP(K15,$I$91:$Q$117,5,FALSE)+C17*VLOOKUP(K17,$I$91:$Q$117,5,FALSE)+C19*VLOOKUP(K19,$I$91:$Q$117,9,FALSE)+C21*VLOOKUP(K21,$I$91:$Q$117,9,FALSE)+C23*VLOOKUP(K23,$I$91:$Q$117,9,FALSE) -> 0 | M7: =+E13*VLOOKUP(M13,$I$91:$Q$117,5,FALSE)+E15*VLOOKUP(M15,$I$91:$Q$117,5,FALSE)+E17*VLOOKUP(M17,$I$91:$Q$117,5,FALSE)+E19*VLOOKUP(M19,$I$91:$Q$117,9,FALSE)+E21*VLOOKUP(M21,$I$91:$Q$117,9,FALSE)+E23*VLOOKUP(M23,$I$91:$Q$117,9,FALSE) -> 0 | O7: =+F13*VLOOKUP(O13,$I$91:$Q$117,5,FALSE)+F15*VLOOKUP(O15,$I$91:$Q$117,5,FALSE)+F17*VLOOKUP(O17,$I$91:$Q$117,5,FALSE)+F19*VLOOKUP(O19,$I$91:$Q$117,9,FALSE)+F21*VLOOKUP(O21,$I$91:$Q$117,9,FALSE)+F23*VLOOKUP(O23,$I$91:$Q$117,9,FALSE) -> 0 | Q7: =+G13*VLOOKUP(Q13,$I$91:$Q$117,5,FALSE)+G15*VLOOKUP(Q15,$I$91:$Q$117,5,FALSE)+G17*VLOOKUP(Q17,$I$91:$Q$117,5,FALSE)+G19*VLOOKUP(Q19,$I$91:$Q$117,9,FALSE)+G21*VLOOKUP(Q21,$I$91:$Q$117,9,FALSE)+G23*VLOOKUP(Q23,$I$91:$Q$117,9,FALSE) -> 0 | S7: =+H13*VLOOKUP(S13,$I$91:$Q$117,5,FALSE)+H15*VLOOKUP(S15,$I$91:$Q$117,5,FALSE)+H17*VLOOKUP(S17,$I$91:$Q$117,5,FALSE)+H19*VLOOKUP(S19,$I$91:$Q$117,9,FALSE)+H21*VLOOKUP(S21,$I$91:$Q$117,9,FALSE)+H23*VLOOKUP(S23,$I$91:$Q$117,9,FALSE) -> 0
A8: 8 | C8: Graduate Student Tuition | I8: Minimum | K8: =+C13*VLOOKUP(K13,$I$91:$Q$117,3,FALSE)+C15*VLOOKUP(K15,$I$91:$Q$117,3,FALSE)+C17*VLOOKUP(K17,$I$91:$Q$117,3,FALSE)+C19*VLOOKUP(K19,$I$91:$Q$117,7,FALSE)+C21*VLOOKUP(K21,$I$91:$Q$117,7,FALSE)+C23*VLOOKUP(K23,$I$91:$Q$117,7,FALSE) -> 0 | M8: =+E13*VLOOKUP(M13,$I$91:$Q$117,3,FALSE)+E15*VLOOKUP(M15,$I$91:$Q$117,3,FALSE)+E17*VLOOKUP(M17,$I$91:$Q$117,3,FALSE)+E19*VLOOKUP(M19,$I$91:$Q$117,7,FALSE)+E21*VLOOKUP(M21,$I$91:$Q$117,7,FALSE)+E23*VLOOKUP(M23,$I$91:$Q$117,7,FALSE) -> 0 | O8: =+F13*VLOOKUP(O13,$I$91:$Q$117,3,FALSE)+F15*VLOOKUP(O15,$I$91:$Q$117,3,FALSE)+F17*VLOOKUP(O17,$I$91:$Q$117,3,FALSE)+F19*VLOOKUP(O19,$I$91:$Q$117,7,FALSE)+F21*VLOOKUP(O21,$I$91:$Q$117,7,FALSE)+F23*VLOOKUP(O23,$I$91:$Q$117,7,FALSE) -> 0 | Q8: =+G13*VLOOKUP(Q13,$I$91:$Q$117,3,FALSE)+G15*VLOOKUP(Q15,$I$91:$Q$117,3,FALSE)+G17*VLOOKUP(Q17,$I$91:$Q$117,3,FALSE)+G19*VLOOKUP(Q19,$I$91:$Q$117,7,FALSE)+G21*VLOOKUP(Q21,$I$91:$Q$117,7,FALSE)+G23*VLOOKUP(Q23,$I$91:$Q$117,7,FALSE) -> 0 | S8: =+H13*VLOOKUP(S13,$I$91:$Q$117,3,FALSE)+H15*VLOOKUP(S15,$I$91:$Q$117,3,FALSE)+H17*VLOOKUP(S17,$I$91:$Q$117,3,FALSE)+H19*VLOOKUP(S19,$I$91:$Q$117,7,FALSE)+H21*VLOOKUP(S21,$I$91:$Q$117,7,FALSE)+H23*VLOOKUP(S23,$I$91:$Q$117,7,FALSE) -> 0
C11: Graduate Student Tuition (most majors)
C12: Year 1 | E12: Year 2 | F12: Year 3 | G12: Year 4 | H12: Year 5
A13: Masters Students (enter no. of students per term) | I13: Summer | K13: Summer 2017 | M13: Summer 2018 | O13: Summer 2019 | Q13: Summer 2020 | S13: Summer 2021
I15: Fall | K15: Fall 2017 | M15: Fall 2018 | O15: Fall 2019 | Q15: Fall 2020 | S15: Fall 2021
I17: Spring | K17: Spring 2017 | M17: Spring 2018 | O17: Spring 2019 | Q17: Spring 2020 | S17: Spring 2021
A19: PhD Students (enter no. of students per term) | I19: Summer | K19: Summer 2017 | M19: Summer 2018 | O19: Summer 2019 | Q19: Summer 2020 | S19: Summer 2021
I21: Fall | K21: Fall 2017 | M21: Fall 2018 | O21: Fall 2019 | Q21: Fall 2020 | S21: Fall 2021
I23: Spring | K23: Spring 2017 | M23: Spring 2018 | O23: Spring 2019 | Q23: Spring 2020 | S23: Spring 2021
A26: 8 | C26: Graduate Student Tuition (Engineering & Architecture) | G26: select 1/4-time/1/2-time > > | I26: 1/2-time | K26: =ROUND(IF($I$26="1/2-time",K27,K28),0) -> 0 | M26: =ROUND(IF($I$26="1/2-time",M27,M28),0) -> 0 | O26: =ROUND(IF($I$26="1/2-time",O27,O28),0) -> 0 | Q26: =ROUND(IF($I$26="1/2-time",Q27,Q28),0) -> 0 | S26: =ROUND(IF($I$26="1/2-time",S27,S28),0) -> 0
A27: 8 | C27: Graduate Student Tuition | I27: Maximum | K27: =+C33*VLOOKUP(K33,$I$121:$Q$147,5,FALSE)+C35*VLOOKUP(K35,$I$121:$Q$147,5,FALSE)+C37*VLOOKUP(K37,$I$121:$Q$147,5,FALSE)+C39*VLOOKUP(K39,$I$121:$Q$147,9,FALSE)+C41*VLOOKUP(K41,$I$121:$Q$147,9,FALSE)+C43*VLOOKUP(K43,$I$121:$Q$147,9,FALSE) -> 0 | M27: =+E33*VLOOKUP(M33,$I$121:$Q$147,5,FALSE)+E35*VLOOKUP(M35,$I$121:$Q$147,5,FALSE)+E37*VLOOKUP(M37,$I$121:$Q$147,5,FALSE)+E39*VLOOKUP(M39,$I$121:$Q$147,9,FALSE)+E41*VLOOKUP(M41,$I$121:$Q$147,9,FALSE)+E43*VLOOKUP(M43,$I$121:$Q$147,9,FALSE) -> 0 | O27: =+F33*VLOOKUP(O33,$I$121:$Q$147,5,FALSE)+F35*VLOOKUP(O35,$I$121:$Q$147,5,FALSE)+F37*VLOOKUP(O37,$I$121:$Q$147,5,FALSE)+F39*VLOOKUP(O39,$I$121:$Q$147,9,FALSE)+F41*VLOOKUP(O41,$I$121:$Q$147,9,FALSE)+F43*VLOOKUP(O43,$I$121:$Q$147,9,FALSE) -> 0 | Q27: =+G33*VLOOKUP(Q33,$I$121:$Q$147,5,FALSE)+G35*VLOOKUP(Q35,$I$121:$Q$147,5,FALSE)+G37*VLOOKUP(Q37,$I$121:$Q$147,5,FALSE)+G39*VLOOKUP(Q39,$I$121:$Q$147,9,FALSE)+G41*VLOOKUP(Q41,$I$121:$Q$147,9,FALSE)+G43*VLOOKUP(Q43,$I$121:$Q$147,9,FALSE) -> 0 | S27: =+H33*VLOOKUP(S33,$I$121:$Q$147,5,FALSE)+H35*VLOOKUP(S35,$I$121:$Q$147,5,FALSE)+H37*VLOOKUP(S37,$I$121:$Q$147,5,FALSE)+H39*VLOOKUP(S39,$I$121:$Q$147,9,FALSE)+H41*VLOOKUP(S41,$I$121:$Q$147,9,FALSE)+H43*VLOOKUP(S43,$I$121:$Q$147,9,FALSE) -> 0
A28: 8 | C28: Graduate Student Tuition | I28: Minimum | K28: =+C33*VLOOKUP(K33,$I$121:$Q$147,3,FALSE)+C35*VLOOKUP(K35,$I$121:$Q$147,3,FALSE)+C37*VLOOKUP(K37,$I$121:$Q$147,3,FALSE)+C39*VLOOKUP(K39,$I$121:$Q$147,7,FALSE)+C41*VLOOKUP(K41,$I$121:$Q$147,7,FALSE)+C43*VLOOKUP(K43,$I$121:$Q$147,7,FALSE) -> 0 | M28: =+E33*VLOOKUP(M33,$I$121:$Q$147,3,FALSE)+E35*VLOOKUP(M35,$I$121:$Q$147,3,FALSE)+E37*VLOOKUP(M37,$I$121:$Q$147,3,FALSE)+E39*VLOOKUP(M39,$I$121:$Q$147,7,FALSE)+E41*VLOOKUP(M41,$I$121:$Q$147,7,FALSE)+E43*VLOOKUP(M43,$I$121:$Q$147,7,FALSE) -> 0 | O28: =+F33*VLOOKUP(O33,$I$121:$Q$147,3,FALSE)+F35*VLOOKUP(O35,$I$121:$Q$147,3,FALSE)+F37*VLOOKUP(O37,$I$121:$Q$147,3,FALSE)+F39*VLOOKUP(O39,$I$121:$Q$147,7,FALSE)+F41*VLOOKUP(O41,$I$121:$Q$147,7,FALSE)+F43*VLOOKUP(O43,$I$121:$Q$147,7,FALSE) -> 0 | Q28: =+G33*VLOOKUP(Q33,$I$121:$Q$147,3,FALSE)+G35*VLOOKUP(Q35,$I$121:$Q$147,3,FALSE)+G37*VLOOKUP(Q37,$I$121:$Q$147,3,FALSE)+G39*VLOOKUP(Q39,$I$121:$Q$147,7,FALSE)+G41*VLOOKUP(Q41,$I$121:$Q$147,7,FALSE)+G43*VLOOKUP(Q43,$I$121:$Q$147,7,FALSE) -> 0 | S28: =+H33*VLOOKUP(S33,$I$121:$Q$147,3,FALSE)+H35*VLOOKUP(S35,$I$121:$Q$147,3,FALSE)+H37*VLOOKUP(S37,$I$121:$Q$147,3,FALSE)+H39*VLOOKUP(S39,$I$121:$Q$147,7,FALSE)+H41*VLOOKUP(S41,$I$121:$Q$147,7,FALSE)+H43*VLOOKUP(S43,$I$121:$Q$147,7,FALSE) -> 0
C31: Engineering & Architecture Students Only
C32: Year 1 | E32: Year 2 | F32: Year 3 | G32: Year 4 | H32: Year 5
A33: Masters Students (enter no. of students per term) | I33: Summer | K33: Summer 2017 | M33: Summer 2018 | O33: Summer 2019 | Q33: Summer 2020 | S33: Summer 2021
I35: Fall | K35: Fall 2017 | M35: Fall 2018 | O35: Fall 2019 | Q35: Fall 2020 | S35: Fall 2021
I37: Spring | K37: Spring 2017 | M37: Spring 2018 | O37: Spring 2019 | Q37: Spring 2020 | S37: Spring 2021
C38: Year 1 | E38: Year 2 | F38: Year 3 | G38: Year 4 | H38: Year 5
A39: PhD Students (enter no. of students per term) | I39: Summer | K39: Summer 2017 | M39: Summer 2018 | O39: Summer 2019 | Q39: Summer 2020 | S39: Summer 2021
I41: Fall | K41: Fall 2017 | M41: Fall 2018 | O41: Fall 2019 | Q41: Fall 2020 | S41: Fall 2021
I43: Spring | K43: Spring 2017 | M43: Spring 2018 | O43: Spring 2019 | Q43: Spring 2020 | S43: Spring 2021
A46: 8 | C46: Graduate Student Tuition (Business & STB) | G46: select 1/4-time/1/2-time > > | I46: 1/2-time | K46: =ROUND(IF($I$46="1/2-time",K47,K48),0) -> 0 | M46: =ROUND(IF($I$46="1/2-time",M47,M48),0) -> 0 | O46: =ROUND(IF($I$46="1/2-time",O47,O48),0) -> 0 | Q46: =ROUND(IF($I$46="1/2-time",Q47,Q48),0) -> 0 | S46: =ROUND(IF($I$46="1/2-time",S47,S48),0) -> 0
A47: 8 | C47: Graduate Student Tuition | I47: Maximum | K47: =+C53*VLOOKUP(K53,$I$151:$Q$177,5,FALSE)+C55*VLOOKUP(K55,$I$151:$Q$177,5,FALSE)+C57*VLOOKUP(K57,$I$151:$Q$177,5,FALSE)+C59*VLOOKUP(K59,$I$151:$Q$177,9,FALSE)+C61*VLOOKUP(K61,$I$151:$Q$177,9,FALSE)+C63*VLOOKUP(K63,$I$151:$Q$177,9,FALSE) -> 0 | M47: =+E53*VLOOKUP(M53,$I$151:$Q$177,5,FALSE)+E55*VLOOKUP(M55,$I$151:$Q$177,5,FALSE)+E57*VLOOKUP(M57,$I$151:$Q$177,5,FALSE)+E59*VLOOKUP(M59,$I$151:$Q$177,9,FALSE)+E61*VLOOKUP(M61,$I$151:$Q$177,9,FALSE)+E63*VLOOKUP(M63,$I$151:$Q$177,9,FALSE) -> 0 | O47: =+F53*VLOOKUP(O53,$I$151:$Q$177,5,FALSE)+F55*VLOOKUP(O55,$I$151:$Q$177,5,FALSE)+F57*VLOOKUP(O57,$I$151:$Q$177,5,FALSE)+F59*VLOOKUP(O59,$I$151:$Q$177,9,FALSE)+F61*VLOOKUP(O61,$I$151:$Q$177,9,FALSE)+F63*VLOOKUP(O63,$I$151:$Q$177,9,FALSE) -> 0 | Q47: =+G53*VLOOKUP(Q53,$I$151:$Q$177,5,FALSE)+G55*VLOOKUP(Q55,$I$151:$Q$177,5,FALSE)+G57*VLOOKUP(Q57,$I$151:$Q$177,5,FALSE)+G59*VLOOKUP(Q59,$I$151:$Q$177,9,FALSE)+G61*VLOOKUP(Q61,$I$151:$Q$177,9,FALSE)+G63*VLOOKUP(Q63,$I$151:$Q$177,9,FALSE) -> 0 | S47: =+H53*VLOOKUP(S53,$I$151:$Q$177,5,FALSE)+H55*VLOOKUP(S55,$I$151:$Q$177,5,FALSE)+H57*VLOOKUP(S57,$I$151:$Q$177,5,FALSE)+H59*VLOOKUP(S59,$I$151:$Q$177,9,FALSE)+H61*VLOOKUP(S61,$I$151:$Q$177,9,FALSE)+H63*VLOOKUP(S63,$I$151:$Q$177,9,FALSE) -> 0
A48: 8 | C48: Graduate Student Tuition | I48: Minimum | K48: =+C53*VLOOKUP(K53,$I$151:$Q$177,3,FALSE)+C55*VLOOKUP(K55,$I$151:$Q$177,3,FALSE)+C57*VLOOKUP(K57,$I$151:$Q$177,3,FALSE)+C59*VLOOKUP(K59,$I$151:$Q$177,7,FALSE)+C61*VLOOKUP(K61,$I$151:$Q$177,7,FALSE)+C63*VLOOKUP(K63,$I$151:$Q$177,7,FALSE) -> 0 | M48: =+E53*VLOOKUP(M53,$I$151:$Q$177,3,FALSE)+E55*VLOOKUP(M55,$I$151:$Q$177,3,FALSE)+E57*VLOOKUP(M57,$I$151:$Q$177,3,FALSE)+E59*VLOOKUP(M59,$I$151:$Q$177,7,FALSE)+E61*VLOOKUP(M61,$I$151:$Q$177,7,FALSE)+E63*VLOOKUP(M63,$I$151:$Q$177,7,FALSE) -> 0 | O48: =+F53*VLOOKUP(O53,$I$151:$Q$177,3,FALSE)+F55*VLOOKUP(O55,$I$151:$Q$177,3,FALSE)+F57*VLOOKUP(O57,$I$151:$Q$177,3,FALSE)+F59*VLOOKUP(O59,$I$151:$Q$177,7,FALSE)+F61*VLOOKUP(O61,$I$151:$Q$177,7,FALSE)+F63*VLOOKUP(O63,$I$151:$Q$177,7,FALSE) -> 0 | Q48: =+G53*VLOOKUP(Q53,$I$151:$Q$177,3,FALSE)+G55*VLOOKUP(Q55,$I$151:$Q$177,3,FALSE)+G57*VLOOKUP(Q57,$I$151:$Q$177,3,FALSE)+G59*VLOOKUP(Q59,$I$151:$Q$177,7,FALSE)+G61*VLOOKUP(Q61,$I$151:$Q$177,7,FALSE)+G63*VLOOKUP(Q63,$I$151:$Q$177,7,FALSE) -> 0 | S48: =+H53*VLOOKUP(S53,$I$151:$Q$177,3,FALSE)+H55*VLOOKUP(S55,$I$151:$Q$177,3,FALSE)+H57*VLOOKUP(S57,$I$151:$Q$177,3,FALSE)+H59*VLOOKUP(S59,$I$151:$Q$177,7,FALSE)+H61*VLOOKUP(S61,$I$151:$Q$177,7,FALSE)+H63*VLOOKUP(S63,$I$151:$Q$177,7,FALSE) -> 0
C51: Business and STB Students Only
C52: Year 1 | E52: Year 2 | F52: Year 3 | G52: Year 4 | H52: Year 5
A53: Masters Students (enter no. of students per term) | I53: 0 | K53: Summer 2017 | M53: Summer 2018 | O53: Summer 2019 | Q53: Summer 2020 | S53: Summer 2021
I55: Fall | K55: Fall 2017 | M55: Fall 2018 | O55: Fall 2019 | Q55: Fall 2020 | S55: Fall 2021
I57: Spring | K57: Spring 2017 | M57: Spring 2018 | O57: Spring 2019 | Q57: Spring 2020 | S57: Spring 2021
C58: Year 1 | E58: Year 2 | F58: Year 3 | G58: Year 4 | H58: Year 5
A59: PhD Students (enter no. of students per term) | I59: Summer | K59: Summer 2017 | M59: Summer 2018 | O59: Summer 2019 | Q59: Summer 2020 | S59: Summer 2021
I61: Fall | K61: Fall 2017 | M61: Fall 2018 | O61: Fall 2019 | Q61: Fall 2020 | S61: Fall 2021
I63: Spring | K63: Spring 2017 | M63: Spring 2018 | O63: Spring 2019 | Q63: Spring 2020 | S63: Spring 2021
A67: 8 | C67: Graduate Student Tuition (*Specific Graduate Departments) | G67: select 1/4-time/1/2-time > > | I67: 1/2-time | K67: =ROUND(IF($I67="1/2-time",K68,K69),0) -> 0 | M67: =ROUND(IF($I$67="1/2-time",M68,M69),0) -> 0 | O67: =ROUND(IF($I$67="1/2-time",O68,O69),0) -> 0 | Q67: =ROUND(IF($I$67="1/2-time",Q68,Q69),0) -> 0 | S67: =ROUND(IF($I$67="1/2-time",S68,S69),0) -> 0
A68: 8 | C68: Graduate Student Tuition | I68: Maximum | K68: =+C74*VLOOKUP(K74,$I$181:$Q$207,5,FALSE)+C76*VLOOKUP(K76,$I$181:$Q$207,5,FALSE)+C78*VLOOKUP(K78,$I$181:$Q$207,5,FALSE)+C80*VLOOKUP(K80,$I$181:$Q$207,9,FALSE)+C82*VLOOKUP(K82,$I$181:$Q$207,9,FALSE)+C84*VLOOKUP(K84,$I$181:$Q$207,9,FALSE) -> 0 | M68: =+E74*VLOOKUP(M74,$I$181:$Q$207,5,FALSE)+E76*VLOOKUP(M76,$I$181:$Q$207,5,FALSE)+E78*VLOOKUP(M78,$I$181:$Q$207,5,FALSE)+E80*VLOOKUP(M80,$I$181:$Q$207,9,FALSE)+E82*VLOOKUP(M82,$I$181:$Q$207,9,FALSE)+E84*VLOOKUP(M84,$I$181:$Q$207,9,FALSE) -> 0 | O68: =+F74*VLOOKUP(O74,$I$181:$Q$207,5,FALSE)+F76*VLOOKUP(O76,$I$181:$Q$207,5,FALSE)+F78*VLOOKUP(O78,$I$181:$Q$207,5,FALSE)+F80*VLOOKUP(O80,$I$181:$Q$207,9,FALSE)+F82*VLOOKUP(O82,$I$181:$Q$207,9,FALSE)+F84*VLOOKUP(O84,$I$181:$Q$207,9,FALSE) -> 0 | Q68: =+G74*VLOOKUP(Q74,$I$181:$Q$207,5,FALSE)+G76*VLOOKUP(Q76,$I$181:$Q$207,5,FALSE)+G78*VLOOKUP(Q78,$I$181:$Q$207,5,FALSE)+G80*VLOOKUP(Q80,$I$181:$Q$207,9,FALSE)+G82*VLOOKUP(Q82,$I$181:$Q$207,9,FALSE)+G84*VLOOKUP(Q84,$I$181:$Q$207,9,FALSE) -> 0 | S68: =+H74*VLOOKUP(S74,$I$181:$Q$207,5,FALSE)+H76*VLOOKUP(S76,$I$181:$Q$207,5,FALSE)+H78*VLOOKUP(S78,$I$181:$Q$207,5,FALSE)+H80*VLOOKUP(S80,$I$181:$Q$207,9,FALSE)+H82*VLOOKUP(S82,$I$181:$Q$207,9,FALSE)+H84*VLOOKUP(S84,$I$181:$Q$207,9,FALSE) -> 0
A69: 8 | C69: Graduate Student Tuition | I69: Minimum | K69: =+C74*VLOOKUP(K74,$I$181:$Q$207,3,FALSE)+C76*VLOOKUP(K76,$I$181:$Q$207,3,FALSE)+C78*VLOOKUP(K78,$I$181:$Q$207,3,FALSE)+C80*VLOOKUP(K80,$I$181:$Q$207,7,FALSE)+C82*VLOOKUP(K82,$I$181:$Q$207,7,FALSE)+C84*VLOOKUP(K84,$I$181:$Q$207,7,FALSE) -> 0 | M69: =+E74*VLOOKUP(M74,$I$181:$Q$207,3,FALSE)+E76*VLOOKUP(M76,$I$181:$Q$207,3,FALSE)+E78*VLOOKUP(M78,$I$181:$Q$207,3,FALSE)+E80*VLOOKUP(M80,$I$181:$Q$207,7,FALSE)+E82*VLOOKUP(M82,$I$181:$Q$207,7,FALSE)+E84*VLOOKUP(M84,$I$181:$Q$207,7,FALSE) -> 0 | O69: =+F74*VLOOKUP(O74,$I$181:$Q$207,3,FALSE)+F76*VLOOKUP(O76,$I$181:$Q$207,3,FALSE)+F78*VLOOKUP(O78,$I$181:$Q$207,3,FALSE)+F80*VLOOKUP(O80,$I$181:$Q$207,7,FALSE)+F82*VLOOKUP(O82,$I$181:$Q$207,7,FALSE)+F84*VLOOKUP(O84,$I$181:$Q$207,7,FALSE) -> 0 | Q69: =+G74*VLOOKUP(Q74,$I$181:$Q$207,3,FALSE)+G76*VLOOKUP(Q76,$I$181:$Q$207,3,FALSE)+G78*VLOOKUP(Q78,$I$181:$Q$207,3,FALSE)+G80*VLOOKUP(Q80,$I$181:$Q$207,7,FALSE)+G82*VLOOKUP(Q82,$I$181:$Q$207,7,FALSE)+G84*VLOOKUP(Q84,$I$181:$Q$207,7,FALSE) -> 0 | S69: =+H74*VLOOKUP(S74,$I$181:$Q$207,3,FALSE)+H76*VLOOKUP(S76,$I$181:$Q$207,3,FALSE)+H78*VLOOKUP(S78,$I$181:$Q$207,3,FALSE)+H80*VLOOKUP(S80,$I$181:$Q$207,7,FALSE)+H82*VLOOKUP(S82,$I$181:$Q$207,7,FALSE)+H84*VLOOKUP(S84,$I$181:$Q$207,7,FALSE) -> 0
C72: *Specific Graduate Departments
C73: Year 1 | E73: Year 2 | F73: Year 3 | G73: Year 4 | H73: Year 5
A74: Masters Students (enter no. of students per term) | C74: 0 | I74: Summer | K74: Summer 2017 | M74: Summer 2018 | O74: Summer 2019 | Q74: Summer 2020 | S74: Summer 2021
I76: Fall | K76: Fall 2017 | M76: Fall 2018 | O76: Fall 2019 | Q76: Fall 2020 | S76: Fall 2021
I78: Spring | K78: Spring 2017 | M78: Spring 2018 | O78: Spring 2019 | Q78: Spring 2020 | S78: Spring 2021
C79: Year 1 | E79: Year 2 | F79: Year 3 | G79: Year 4 | H79: Year 5
A80: PhD Students (enter no. of students per term) | I80: Summer | K80: Summer 2017 | M80: Summer 2018 | O80: Summer 2019 | Q80: Summer 2020 | S80: Summer 2021
I82: Fall | K82: Fall 2017 | M82: Fall 2018 | O82: Fall 2019 | Q82: Fall 2020 | S82: Fall 2021
I84: Spring | K84: Spring 2017 | M84: Spring 2018 | O84: Spring 2019 | Q84: Spring 2020 | S84: Spring 2021
A85: *Animal Sci, Comp Sci, GDCB, Microbiology, Plant Path, BBMB, EEOB, Industrial Design, NREM
K87: Masters - Min | M87: Masters-Max | O87: PhD - Min | Q87: PhD - Max | S87: esc. Rate
S88: 1.042
S89: 1/4-time
S90: 1/2-time
I91: Fall 2017 | K91: =Q91/4 -> 1091 | M91: =O91 -> 2182 | O91: =Q91/2 -> 2182 | Q91: 4364
I92: Fall 2018 | K92: =K91*$S$88 -> 1136.822 | L92: =L91*$S$88 -> 0 | M92: =M91*$S$88 -> 2273.644 | N92: 0 | O92: =Q92/2 -> 2273.644 | P92: 0 | Q92: =Q91*$S$88 -> 4547.288
I93: Fall 2019 | K93: =K92*$S$88 -> 1184.568524 | M93: 2369.137048 | O93: 2369.137048 | Q93: 4738.274096
I94: Fall 2020 | K94: 1234.320402 | M94: 2468.640804 | O94: 2468.640804 | Q94: =Q93*$S$88 -> 4937.281608
I95: Fall 2021 | K95: 1286.161859 | M95: 2572.323718 | O95: 2572.323718 | Q95: =Q94*$S$88 -> 5144.647436
I96: Fall 2022 | K96: 1340.180657 | M96: 2680.361314 | O96: 2680.361314 | Q96: =Q95*$S$88 -> 5360.722628
I97: Fall 2023 | K97: 1396.468245 | M97: 2792.936489 | O97: 2792.936489 | Q97: =Q96*$S$88 -> 5585.872978
I98: Fall 2024 | K98: 1455.119911 | M98: 2910.239822 | O98: 2910.239822 | Q98: 5820.479643
I100: Spring 2017 | K100: =Q100/4 -> 1059.25 | M100: =Q100/2 -> 2118.5 | O100: =Q100/2 -> 2118.5 | Q100: 4237
I101: Spring 2018 | K101: =M101/2 -> 1091 | M101: =O101 -> 2182 | O101: =Q101/2 -> 2182 | Q101: 4364
I102: Spring 2019 | K102: =K101*$S$88 -> 1136.822 | M102: =M101*$S$88 -> 2273.644 | O102: =O101*$S$88 -> 2273.644 | Q102: =Q101*$S$88 -> 4547.288
I103: Spring 2020 | K103: 1184.568524 | M103: 2369.137048 | O103: 2369.137048 | Q103: 4738.274096
I104: Spring 2021 | K104: 1234.320402 | M104: 2468.640804 | O104: 2468.640804 | Q104: 4937.281608
I105: Spring 2022 | K105: 1286.161859 | M105: 2572.323718 | O105: 2572.323718 | Q105: 5144.647436
I106: Spring 2023 | K106: 1340.180657 | M106: 2680.361314 | O106: 2680.361314 | Q106: 5360.722628
I107: Spring 2024 | K107: 1396.468245 | M107: 2792.936489 | O107: 2792.936489 | Q107: 5585.872978
I109: Summer 2017 | K109: =Q109/4 -> 606.25 | M109: =Q109/2 -> 1212.5 | O109: =Q109/2 -> 1212.5 | Q109: 2425
I110: Summer 2018 | K110: =K109*$S$88 -> 631.7125 | M110: =M109*$S$88 -> 1263.425 | O110: =O109*$S$88 -> 1263.425 | Q110: =Q109*S88 -> 2526.85
I111: Summer 2019 | K111: =K110*$S$88 -> 658.244425 | M111: =M110*$S$88 -> 1316.48885 | O111: =O110*$S$88 -> 1316.48885 | Q111: =Q110*$S$88 -> 2632.9777
I112: Summer 2020 | K112: 685.8906909 | M112: 1371.781382 | O112: 1371.781382 | Q112: 2743.562763
I113: Summer 2021 | K113: 714.6980999 | M113: 1429.3962 | O113: 1429.3962 | Q113: 2858.792399
I114: Summer 2022 | K114: 744.7154201 | M114: 1489.43084 | O114: 1489.43084 | Q114: 2978.86168
I115: Summer 2023 | K115: 775.9934677 | M115: 1551.986935 | O115: 1551.986935 | Q115: 3103.973871
I116: Summer 2024 | K116: 808.5851933 | M116: =M115*$S$88 -> 1617.170387 | O116: 1617.170387 | Q116: 3234.340773
I118: Engineering & Architecture students
K119: Masters - Min | M119: Masters-Max | O119: PhD - Min | Q119: PhD - Max
I121: Fall 2017 | K121: =Q121/4 -> 1258 | M121: =O121 -> 2516 | O121: =Q121/2 -> 2516 | Q121: 5032
I122: Fall 2018 | K122: =K121*$S$88 -> 1310.836 | M122: =M121*$S$88 -> 2621.672 | O122: =O121*$S$88 -> 2621.672 | Q122: =Q121*$S$88 -> 5243.344
I123: Fall 2019 | K123: =K122*$S$88 -> 1365.891112 | M123: =M122*$S$88 -> 2731.782224 | O123: =O122*$S$88 -> 2731.782224 | Q123: 5463.564448
I124: Fall 2020 | K124: 1423.258539 | M124: 2846.517077 | O124: 2846.517077 | Q124: 5693.034155
I125: Fall 2021 | K125: 1483.035397 | M125: 2966.070795 | O125: 2966.070795 | Q125: 5932.141589
I126: Fall 2022 | K126: 1545.322884 | M126: 3090.645768 | O126: 3090.645768 | Q126: 6181.291536
I127: Fall 2023 | K127: =K126*$S$88 -> 1610.226445 | M127: 3220.45289 | O127: 3220.45289 | Q127: 6440.905781
I128: Fall 2024 | K128: 1677.855956 | M128: 3355.711912 | O128: 3355.711912 | Q128: 6711.423823
K129: 0 | O129: 0
I130: Spring 2017 | K130: =Q130/4 -> 1221.25 | M130: =O130 -> 2442.5 | O130: =Q130/2 -> 2442.5 | Q130: 4885
I131: Spring 2018 | K131: =M131/2 -> 1258 | M131: =O131 -> 2516 | O131: =Q131/2 -> 2516 | Q131: 5032
I132: Spring 2019 | K132: =K131*$S$88 -> 1310.836 | M132: =M131*$S$88 -> 2621.672 | O132: =O131*$S$88 -> 2621.672 | Q132: =Q131*$S$88 -> 5243.344
I133: Spring 2020 | K133: 1365.891112 | M133: 2731.782224 | O133: 2731.782224 | Q133: 5463.564448
I134: Spring 2021 | K134: 1423.258539 | M134: 2846.517077 | O134: 2846.517077 | Q134: 5693.034155
I135: Spring 2022 | K135: 1483.035397 | M135: 2966.070795 | O135: 2966.070795 | Q135: 5932.141589
I136: Spring 2023 | K136: 1545.322884 | M136: 3090.645768 | O136: 3090.645768 | Q136: 6181.291536
I137: Spring 2024 | K137: 1610.226445 | M137: 3220.45289 | O137: 3220.45289 | Q137: 6440.905781
K138: 0 | O138: 0
I139: Summer 2017 | K139: =Q139/4 -> 700 | M139: =Q139/2 -> 1400 | O139: =Q139/2 -> 1400 | Q139: 2800
I140: Summer 2018 | K140: =K139*$S$88 -> 729.4 | M140: =M139*$S$88 -> 1458.8 | O140: =O139*$S$88 -> 1458.8 | Q140: =Q139*$S$88 -> 2917.6
I141: Summer 2019 | K141: =K140*$S$88 -> 760.0348 | M141: =M140*$S$88 -> 1520.0696 | O141: =O140*$S$88 -> 1520.0696 | Q141: =Q140*$S$88 -> 3040.1392
I142: Summer 2020 | K142: 791.9562616 | M142: 1583.912523 | O142: 1583.912523 | Q142: 3167.825046
I143: Summer 2021 | K143: 825.2184246 | M143: 1650.436849 | O143: 1650.436849 | Q143: 3300.873698
I144: Summer 2022 | K144: 859.8775984 | M144: 1719.755197 | O144: 1719.755197 | Q144: 3439.510394
I145: Summer 2023 | K145: 895.9924576 | M145: 1791.984915 | O145: 1791.984915 | Q145: 3583.96983
I146: Summer 2024 | K146: 933.6241408 | M146: 1867.248282 | O146: 1867.248282 | Q146: 3734.496563
I148: Business & STB
K149: Masters - Min | M149: Masters-Max | O149: PhD - Min | Q149: PhD - Max
I151: Fall 2017 | K151: =Q151/4 -> 1324.5 | M151: =Q151/2 -> 2649 | O151: =Q151/2 -> 2649 | Q151: 5298
I152: Fall 2018 | K152: =K151*$S$88 -> 1380.129 | M152: =M151*$S$88 -> 2760.258 | O152: =O151*$S$88 -> 2760.258 | Q152: =Q151*$S$88 -> 5520.516
I153: Fall 2019 | K153: =K152*$S$88 -> 1438.094418 | M153: =M152*$S$88 -> 2876.188836 | O153: =O152*$S$88 -> 2876.188836 | Q153: =Q152*$S$88 -> 5752.377672
I154: Fall 2020 | K154: 1498.494384 | M154: 2996.988767 | O154: 2996.988767 | Q154: 5993.977534
I155: Fall 2021 | K155: 1561.431148 | M155: 3122.862295 | O155: 3122.862295 | Q155: 6245.724591
I156: Fall 2022 | K156: 1627.011256 | M156: 3254.022512 | O156: 3254.022512 | Q156: 6508.045023
I157: Fall 2023 | K157: 1695.345729 | M157: 3390.691457 | O157: 3390.691457 | Q157: 6781.382914
I158: Fall 2024 | K158: 1766.550249 | M158: 3533.100498 | O158: 3533.100498 | Q158: 7066.200997
K159: 0 | O159: 0
I160: Spring 2017 | K160: =Q160/4 -> 1286 | M160: =Q160/2 -> 2572 | O160: =Q160/2 -> 2572 | Q160: 5144
I161: Spring 2018 | K161: =M161/2 -> 1324.5 | M161: =O161 -> 2649 | O161: =Q161/2 -> 2649 | Q161: 5298
I162: Spring 2019 | K162: =K161*$S$88 -> 1380.129 | M162: =M161*$S$88 -> 2760.258 | O162: =O161*$S$88 -> 2760.258 | Q162: =Q161*$S$88 -> 5520.516
I163: Spring 2020 | K163: 1438.094418 | M163: 2876.188836 | O163: 2876.188836 | Q163: =Q162*$S$88 -> 5752.377672
I164: Spring 2021 | K164: 1498.494384 | M164: 2996.988767 | O164: 2996.988767 | Q164: 5993.977534
I165: Spring 2022 | K165: 1561.431148 | M165: 3122.862295 | O165: 3122.862295 | Q165: 6245.724591
I166: Spring 2023 | K166: 1627.011256 | M166: 3254.022512 | O166: 3254.022512 | Q166: 6508.045023
I167: Spring 2024 | K167: 1695.345729 | M167: 3390.691457 | O167: 3390.691457 | Q167: 6781.382914
K168: 0 | O168: 0
I169: Summer 2017 | K169: =Q169/4 -> 736.25 | M169: =Q169/2 -> 1472.5 | O169: =Q169/2 -> 1472.5 | Q169: 2945
I170: Summer 2018 | K170: =K169*$S$88 -> 767.1725 | M170: =M169*$S$88 -> 1534.345 | O170: =O169*$S$88 -> 1534.345 | Q170: =Q169*$S$88 -> 3068.69
I171: Summer 2019 | K171: =K170*$S$88 -> 799.393745 | M171: =M170*$S$88 -> 1598.78749 | O171: =O170*$S$88 -> 1598.78749 | Q171: =Q170*$S$88 -> 3197.57498
I172: Summer 2020 | K172: 832.9682823 | M172: 1665.936565 | O172: 1665.936565 | Q172: 3331.873129
I173: Summer 2021 | K173: 867.9529501 | M173: 1735.9059 | O173: 1735.9059 | Q173: 3471.811801
I174: Summer 2022 | K174: 904.4069741 | M174: 1808.813948 | O174: 1808.813948 | Q174: 3617.627896
I175: Summer 2023 | K175: 942.392067 | M175: 1884.784134 | O175: 1884.784134 | Q175: 3769.568268
I176: Summer 2024 | K176: 981.9725338 | M176: 1963.945068 | O176: 1963.945068 | Q176: 3927.890135
I178: Specific Graduate Departments
K179: Masters - Min | M179: Masters-Max | O179: PhD - Min | Q179: PhD - Max
I181: Fall 2017 | K181: =Q181/4 -> 1137.75 | M181: =Q181/2 -> 2275.5 | O181: =Q181/2 -> 2275.5 | Q181: 4551
I182: Fall 2018 | K182: =K181*$S$88 -> 1185.5355 | M182: =M181*$S$88 -> 2371.071 | O182: =O181*$S$88 -> 2371.071 | Q182: =Q181*$S$88 -> 4742.142
I183: Fall 2019 | K183: =K182*$S$88 -> 1235.327991 | M183: =M182*$S$88 -> 2470.655982 | O183: =O182*$S$88 -> 2470.655982 | Q183: =Q182*$S$88 -> 4941.311964
I184: Fall 2020 | K184: 1287.211767 | M184: 2574.423533 | O184: 2574.423533 | Q184: 5148.847066
I185: Fall 2021 | K185: 1341.274661 | M185: 2682.549322 | O185: 2682.549322 | Q185: 5365.098643
I186: Fall 2022 | K186: 1397.608197 | M186: 2795.216393 | O186: 2795.216393 | Q186: 5590.432786
I187: Fall 2023 | K187: 1456.307741 | M187: 2912.615482 | O187: 2912.615482 | Q187: 5825.230963
I188: Fall 2024 | K188: 1517.472666 | M188: 3034.945332 | O188: 3034.945332 | Q188: 6069.890664
K189: 0 | O189: 0
I190: Spring 2017 | K190: =Q190/4 -> 1059.25 | M190: =Q190/2 -> 2118.5 | O190: =Q190/2 -> 2118.5 | Q190: =Q100 -> 4237
I191: Spring 2018 | K191: =M191/2 -> 1137.75 | M191: =O191 -> 2275.5 | O191: =Q191/2 -> 2275.5 | Q191: 4551
I192: Spring 2019 | K192: =K191*$S$88 -> 1185.5355 | M192: =M191*$S$88 -> 2371.071 | O192: =O191*$S$88 -> 2371.071 | Q192: =Q191*$S$88 -> 4742.142
I193: Spring 2020 | K193: 1235.327991 | M193: 2470.655982 | O193: 2470.655982 | Q193: =Q192*$S$88 -> 4941.311964
I194: Spring 2021 | K194: 1287.211767 | M194: 2574.423533 | O194: 2574.423533 | Q194: 5148.847066
I195: Spring 2022 | K195: 1341.274661 | M195: 2682.549322 | O195: 2682.549322 | Q195: 5365.098643
I196: Spring 2023 | K196: 1397.608197 | M196: 2795.216393 | O196: 2795.216393 | Q196: 5590.432786
I197: Spring 2024 | K197: 1456.307741 | M197: 2912.615482 | O197: 2912.615482 | Q197: 5825.230963
K198: 0 | O198: 0
I199: Summer 2017 | K199: =Q199/4 -> 632.5 | M199: =Q199/2 -> 1265 | O199: =Q199/2 -> 1265 | Q199: 2530
I200: Summer 2018 | K200: =K199*$S$88 -> 659.065 | M200: =M199*$S$88 -> 1318.13 | O200: =O199*$S$88 -> 1318.13 | Q200: =Q199*$S$88 -> 2636.26
I201: Summer 2019 | K201: =K200*$S$88 -> 686.74573 | M201: =M200*$S$88 -> 1373.49146 | O201: =O200*$S$88 -> 1373.49146 | Q201: =Q200*$S$88 -> 2746.98292
I202: Summer 2020 | K202: 715.5890507 | M202: 1431.178101 | O202: 1431.178101 | Q202: 2862.356203
I203: Summer 2021 | K203: 745.6437908 | M203: 1491.287582 | O203: 1491.287582 | Q203: 2982.575163
I204: Summer 2022 | K204: 776.96083 | M204: 1553.92166 | O204: 1553.92166 | Q204: 3107.84332
I205: Summer 2023 | K205: 809.5931849 | M205: 1619.18637 | O205: 1619.18637 | Q205: 3238.372739
I206: Summer 2024 | K206: 843.5960986 | M206: 1687.192197 | O206: 1687.192197 | Q206: 3374.384394

Sheet Travel Details
A1: Only use this sheet tab if the sponsor requires a detailed breakdown of your travel (Ex: NSF and USDA) | M1: Directions:
A2: Complete table; Copy & Paste (special - picture) into the Budget Justification | M2: 1. Complete itemized travel table (note: some sections have formulas; please edit as necessary)
M3: 2. Check Expedia or Travelocity for current airfare and hotel rates
B4: DOMESTIC TRAVEL | M4: 3. Use GSA rates for foreign travel - website : | R4: https://aoprals.state.gov/web920/per_diem.asp
A5: Year | B5: Purpose of Travel/ Destination | C5: No. of Travelers | D5: Estim. Airfare | E5: Nights per Trip | F5: Lodging Rate | G5: Days | H5: Per Diem | I5: Misc.* | J5: TOTAL | M5: 4. Misc* column includes registration fees, mileage to airport, airport parking, shuttles, taxis, etc. (add notes if needed)
A6: 1 | B6: ________ Conference | C6: 1 | D6: 0 | F6: 0 | H6: 40 | I6: 0 | J6: =C6*(((D6)+(E6*F6)+(H6*G6))+(I6)) -> 0 | M6: 5. Enter yearly travel amounts on SUMMARY sheet tab
B7: (Enter Location or TBD) | M7: 6. Copy & Paste the travel table as "Paste, Special, Picture" into the Budget Justification
A8: 2 | B8: ________ Conference | C8: 1 | D8: 0 | F8: 0 | H8: 40 | I8: 0 | J8: =C8*(((D8)+(E8*F8)+(H8*G8))+(I8)) -> 0
B9: (Enter Location or TBD)
A10: 3 | B10: ________ Conference | C10: 1 | D10: 0 | F10: 0 | H10: 40 | I10: 0 | J10: =C10*(((D10)+(E10*F10)+(H10*G10))+(I10)) -> 0
B11: (Enter Location or TBD)
A12: 4 | B12: ________ Conference | C12: 1 | D12: 0 | F12: 0 | H12: 40 | I12: 0 | J12: =C12*(((D12)+(E12*F12)+(H12*G12))+(I12)) -> 0
B13: (Enter Location or TBD)
A14: 5 | B14: ________ Conference | C14: 1 | D14: 0 | F14: 0 | H14: 40 | I14: 0 | J14: =C14*(((D14)+(E14*F14)+(H14*G14))+(I14)) -> 0
B15: (Enter Location or TBD)
A16: TOTAL DOMESTIC TRAVEL | J16: =SUM(J6:J15) -> 0
A17: * Miscellaneous: Registration fees, Mileage to Airport, Parking at Airport, Shuttles, Other.
A19: INTERNATIONAL TRAVEL | F19: GSA Rate | H19: GSA Rate | L19: Recommend using GSA rates for Lodging and Meals & Incidentals: https://aoprals.state.gov/web920/per_diem.asp
A20: 1 | B20: ________ Conference | C20: 1 | D20: 0 | F20: 0 | H20: 0 | I20: 0 | J20: =C20*(((D20)+(E20*F20)+(H20*G20))+(I20)) -> 0
B21: (Enter Location or TBD)
A22: 2 | B22: ________ Conference | C22: 1 | D22: 0 | F22: 0 | H22: 0 | I22: 0 | J22: =C22*(((D22)+(E22*F22)+(H22*G22))+(I22)) -> 0 | M22: Use GSA rates (see instruction #3 above)
B23: (Enter Location or TBD)
A24: 3 | B24: ________ Conference | C24: 1 | D24: 0 | F24: 0 | H24: 0 | I24: 0 | J24: =C24*(((D24)+(E24*F24)+(H24*G24))+(I24)) -> 0
B25: (Enter Location or TBD)
A26: 4 | B26: ________ Conference | C26: 1 | D26: 0 | F26: 0 | H26: 0 | I26: 0 | J26: =C26*(((D26)+(E26*F26)+(H26*G26))+(I26)) -> 0
B27: (Enter Location or TBD)
A28: 5 | B28: ________ Conference | C28: 1 | D28: 0 | F28: 0 | H28: 0 | I28: 0 | J28: =C28*(((D28)+(E28*F28)+(H28*G28))+(I28)) -> 0
B29: (Enter Location or TBD)
A30: TOTAL INTERNATIONAL TRAVEL | J30: =SUM(J20:J29) -> 0
A31: * Miscellaneous: Registration fees, Mileage to Airport, Parking at Airport, Shuttles, Other.
A33: TOTAL DOMESTIC AND INTERNATIONAL TRAVEL | J33: =J16+J30 -> 0

Sheet SPA USE ONLY
A1: Sponsor: | B1: =Summary!D3 -> .
A2: Title: | B2: =Summary!D4 -> .
A3: PI Name: | B3: =Summary!D5 -> .
A4: Period of Performance: | B4: =Summary!D6 -> .
A5: Account Number:
A7: Budget Categories | B7: Budget Code | C7: Amount
A8: Salary/Hourly | B8: 0108 | C8: =ROUND(Summary!R38,0) -> 0
A9: Payroll Benefits | B9: 0130 | C9: =ROUND(Summary!R40,0) -> 0
A10: Equipment | B10: 0710 | C10: =ROUND(Summary!R65,0) -> 0
A11: Travel Domestic | B11: 0215 | C11: =ROUND(Summary!R70+Summary!R75+Summary!R76,0) -> 0
A12: Travel Foreign | B12: 0216 | C12: =ROUND(Summary!R71,0) -> 0
A13: Student Tuition | B13: 0610 | C13: =ROUND(SUM(Summary!R90:R93),0) -> 0
A14: Supplies | B14: 0410 | C14: =ROUND(Summary!R80,0) -> 0
A15: Subcontracts
A16: Subject to IDC | B16: 0396 | C16: =ROUND(Summary!R86+Summary!R88,0) -> 0
A17: Not Subejct to IDC | B17: 0376 | C17: =ROUND(Summary!R87+Summary!R89,0) -> 0
A18: Other Direct Costs
A19: Computer Usage | B19: 0353 | C19: =ROUND(Summary!R83,0) -> 0
A20: Printing/Copying | B20: 0373 | C20: =ROUND(Summary!R81,0) -> 0
A21: Services/Honoraria | B21: 0302 | C21: =ROUND(Summary!R74+Summary!R82,0) -> 0
A22: Other | B22: 0630 | C22: =ROUND(Summary!R84+Summary!R94+Summary!R95+Summary!R77+Summary!R85,0) -> 0
A23: Total Direct Costs | C23: =SUM(C8:C22) -> 0
A24: Indirect Costs | B24: 0642 | C24: =ROUND(Summary!R103,0) -> 0
A25: Total Costs | C25: =SUM(C23:C24) -> 0
